fUSD/lending_fUSD_20250511
["ID","MTS","AMOUNT","RATE_DAILY","PERIOD"]
[360675312,1746922273425,-400.0,0.00019988,2]
[360675313,1746922273434,-400.0,0.00019988,2]
[360675314,1746922273443,-400.0,0.00019988,2]
[360675315,1746922273453,-722.52,0.00019988,2]
[360675316,1746922273462,-400.0,0.00019988,2]
[360675317,1746922273471,-428.6,0.00019988,2]
[360675318,1746922273481,-400.0,0.00019988,2]
[360675319,1746922273490,-400.0,0.00019988,2]
[360675320,1746922273501,-400.0,0.00019988,2]
[360675321,1746922273510,-400.0,0.00019988,2]
[360675322,1746922273520,-400.0,0.00019988,2]
[360675323,1746922273529,-494.9,0.00019988,2]
[360675324,1746922273538,-400.0,0.00019988,2]
[360675325,1746922273549,-400.0,0.00019988,2]
[360675326,1746922273558,-1196.84,0.00019988,2]
[360675327,1746922273567,-400.0,0.00019988,2]
[360675328,1746922273576,-400.0,0.00019988,2]
[360675329,1746922273586,-588.98,0.00019988,2]
[360675330,1746922273595,-400.0,0.00019988,2]
[360675331,1746922273605,-400.0,0.00019988,2]
[360675332,1746922273619,-400.0,0.00019988,2]
[360675333,1746922273628,-711.13,0.00019988,2]
[360675334,1746922273637,-400.0,0.00019988,2]
[360675335,1746922273646,-400.0,0.00019988,2]
[360675336,1746922273656,-400.0,0.00019988,2]
[360675337,1746922273665,-400.0,0.00019988,2]
[360675338,1746922273674,-400.0,0.00019988,2]
[360675339,1746922273684,-400.0,0.00019988,2]
[360675340,1746922273693,-400.0,0.00019988,2]
[360675341,1746922273704,-748.55,0.00019988,2]
[360675342,1746922273713,-400.0,0.00019988,2]
[360675343,1746922273722,-27410.73,0.00019988,2]
[360675344,1746922273732,-400.0,0.00019988,2]
[360675345,1746922273742,-151.0,0.00019988,2]
[360675346,1746922273751,-660.51,0.00019988,2]
[360675347,1746922273760,-151.0,0.00019988,2]
[360675348,1746922273770,-568.0,0.00019988,2]
[360675349,1746922273779,-500.0,0.00019988,2]
[360675350,1746922273789,-400.0,0.00019988,2]
[360675351,1746922273798,-400.0,0.00019988,2]
[360675352,1746922273807,-400.0,0.00019988,2]
[360675353,1746922273817,-820.74,0.00019988,2]
[360675354,1746922273827,-815.94,0.00019988,2]
[360675355,1746922273836,-151.0,0.00019988,2]
[360675356,1746922273845,-686.29,0.00019988,2]
[360675357,1746922273855,-1754.64,0.00019988,2]
[360675358,1746922273869,-400.0,0.00019988,2]
[360675359,1746922273879,-151.0,0.00019988,2]
[360675360,1746922273888,-400.0,0.00019988,2]
[360675361,1746922273897,-400.0,0.00019988,2]
[360675362,1746922273907,-570.9,0.00019988,2]
[360675363,1746922273917,-400.0,0.00019988,2]
[360675364,1746922273927,-268.827068,0.00019988,2]
[360675365,1746922273936,-863.57,0.00019988,2]
[360675366,1746922273946,-624.8,0.00019988,2]
[360675367,1746922273955,-268.827068,0.00019988,2]
[360675368,1746922273964,-610.92,0.00019988,2]
[360675369,1746922273974,-2975.71,0.00019988,2]
[360675370,1746922273983,-400.0,0.00019988,2]
[360675371,1746922273993,-657.91,0.00019988,2]
[360675372,1746922274003,-400.0,0.00019988,2]
[360675373,1746922274013,-3132.65,0.00019988,2]
[360675374,1746922274023,-151.0,0.00019988,2]
[360675375,1746922274033,-151.0,0.00019988,2]
[360675376,1746922274044,-1696.63,0.00019988,2]
[360675377,1746922274053,-400.0,0.00019988,2]
[360675378,1746922274063,-400.0,0.00019988,2]
[360675379,1746922274073,-400.0,0.00019988,2]
[360675380,1746922274082,-795.5,0.00019988,2]
[360675381,1746922274092,-400.0,0.00019988,2]
[360675382,1746922274102,-470.43,0.00019988,2]
[360675383,1746922274115,-1342.02,0.00019988,2]
[360675384,1746922274125,-402.12,0.00019988,2]
[360675385,1746922274134,-400.0,0.00019988,2]
[360675386,1746922274143,-400.0,0.00019988,2]
[360675387,1746922274153,-400.0,0.00019988,2]
[360675388,1746922274162,-400.0,0.00019988,2]
[360675389,1746922274171,-400.0,0.00019988,2]
[360675390,1746922274181,-400.0,0.00019988,2]
[360675391,1746922274190,-462.203059,0.00019988,2]
[360675392,1746922274201,-400.0,0.00019988,2]
[360675393,1746922274210,-462.203059,0.00019988,2]
[360675394,1746922274221,-400.0,0.00019988,2]
[360675395,1746922274230,-400.0,0.00019988,2]
[360675396,1746922274240,-400.0,0.00019988,2]
[360675397,1746922274250,-400.0,0.00019988,2]
[360675398,1746922274259,-600.9,0.00019988,2]
[360675399,1746922274269,-400.0,0.00019988,2]
[360675400,1746922274279,-400.0,0.00019988,2]
[360675401,1746922274288,-544.12,0.00019988,2]
[360675402,1746922274297,-400.0,0.00019988,2]
[360675403,1746922274307,-400.0,0.00019988,2]
[360675404,1746922274317,-400.0,0.00019988,2]
[360675405,1746922274327,-400.0,0.00019988,2]
[360675406,1746922274341,-2265.29,0.00019988,2]
[360675407,1746922274351,-400.0,0.00019988,2]
[360675408,1746922274365,-518.2,0.00019988,2]
[360675409,1746922274375,-400.0,0.00019988,2]
[360675410,1746922274385,-400.0,0.00019988,2]
[360675411,1746922274395,-400.0,0.00019988,2]
[360675412,1746922274404,-173.98867211,0.00019988,2]
[360675413,1746922274415,-400.0,0.00019988,2]
[360675414,1746922274425,-513.40217177,0.00019989,2]
[360675415,1746922274435,-400.0,0.00019989,2]
[360675416,1746922274445,-400.0,0.00019989,2]
[360675417,1746922274454,-400.0,0.00019989,2]
[360675418,1746922274465,-400.0,0.00019989,2]
[360675419,1746922274474,-400.0,0.00019989,2]
[360675420,1746922274483,-400.0,0.00019989,2]
[360675421,1746922274493,-400.0,0.00019989,2]
[360675422,1746922274502,-400.0,0.00019989,2]
[360675423,1746922274512,-576.35,0.00019989,2]
[360675424,1746922274522,-576.35,0.00019989,2]
[360675425,1746922274532,-576.35,0.00019989,2]
[360675426,1746922274542,-576.35,0.00019989,2]
[360675427,1746922274551,-576.35,0.00019989,2]
[360675428,1746922274560,-576.35,0.00019989,2]
[360675429,1746922274570,-576.35,0.00019989,2]
[360675430,1746922274580,-576.35,0.00019989,2]
[360675431,1746922274590,-400.0,0.00019989,2]
[360675432,1746922274599,-400.0,0.00019989,2]
[360675433,1746922274613,-400.0,0.00019989,2]
[360675434,1746922274623,-400.0,0.00019989,2]
[360675435,1746922274632,-400.0,0.00019989,2]
[360675436,1746922274642,-400.0,0.00019989,2]
[360675437,1746922274651,-400.0,0.00019989,2]
[360675438,1746922274661,-400.0,0.00019989,2]
[360675439,1746922274670,-549.19,0.00019989,2]
[360675440,1746922274680,-549.19,0.00019989,2]
[360675441,1746922274689,-549.19,0.00019989,2]
[360675442,1746922274698,-549.19,0.00019989,2]
[360675443,1746922274708,-549.19,0.00019989,2]
[360675444,1746922274717,-549.19,0.00019989,2]
[360675445,1746922274728,-549.19,0.00019989,2]
[360675446,1746922274737,-549.19,0.00019989,2]
[360675447,1746922274747,-400.0,0.00019989,2]
[360675448,1746922274756,-400.0,0.00019989,2]
[360675449,1746922274766,-400.0,0.00019989,2]
[360675450,1746922274776,-400.0,0.00019989,2]
[360675451,1746922274786,-400.0,0.00019989,2]
[360675452,1746922274795,-400.0,0.00019989,2]
[360675453,1746922274805,-465.29,0.00019989,2]
[360675454,1746922274814,-400.0,0.00019989,2]
[360675455,1746922274824,-436.64,0.00019989,2]
[360675456,1746922274833,-400.0,0.00019989,2]
[360675457,1746922274843,-163.62211587,0.00019989,2]
[360675458,1746922274852,-400.0,0.00019989,2]
[360675459,1746922274865,-196.49,0.00019989,2]
[360675460,1746922274875,-590.88,0.00019989,2]
[360675461,1746922274884,-590.88,0.00019989,2]
[360675462,1746922275034,-590.88,0.00019989,2]
[360675463,1746922275044,-590.88,0.00019989,2]
[360675464,1746922275054,-590.88,0.00019989,2]
[360675465,1746922275063,-590.88,0.00019989,2]
[360675466,1746922275073,-590.88,0.00019989,2]
[360675467,1746922275083,-590.88,0.00019989,2]
[360675468,1746922275092,-400.0,0.00019989,2]
[360675469,1746922275102,-400.0,0.00019989,2]
[360675470,1746922275114,-400.0,0.00019989,2]
[360675471,1746922275124,-509.48,0.00019989,2]
[360675472,1746922275133,-393.23,0.00019989,2]
[360675473,1746922275143,-30056.16875247,0.0001999,2]
[360675474,1746922275152,-504.4575135,0.0001999,7]
[360675475,1746922275163,-151.0,0.0001999,2]
[360675476,1746922275173,-151.0,0.0001999,2]
[360675477,1746922275183,-228.50585417,0.0001999,2]
[360675478,1746922275193,-150.0,0.00019991,2]
[360675479,1746922275202,-400.0,0.00019994,2]
[360675480,1746922275212,-576.35,0.00019994,2]
[360675481,1746922275222,-400.0,0.00019994,2]
[360675482,1746922275231,-549.19,0.00019994,2]
[360675483,1746922275240,-590.88,0.00019994,2]
[360675484,1746922275251,-400.0,0.00019994,2]
[360675485,1746922275261,-400.0,0.00019994,2]
[360675486,1746922275271,-501.66,0.00019994,2]
[360675487,1746922275280,-400.0,0.00019994,2]
[360675488,1746922275289,-400.0,0.00019994,2]
[360675489,1746922275298,-400.0,0.00019994,2]
[360675490,1746922275308,-23618.42308568,0.00019996,2]
[360675491,1746922275317,-160.500912,0.00019996,2]
[360675492,1746922275327,-450.28,0.00019996,2]
[360675493,1746922275342,-400.0,0.00019996,2]
[360675494,1746922275351,-400.0,0.00019996,2]
[360675495,1746922275364,-942.26,0.00019996,2]
[360675496,1746922275375,-613.12,0.00019996,2]
[360675497,1746922275384,-400.0,0.00019996,2]
[360675498,1746922275393,-400.0,0.00019996,2]
[360675499,1746922275403,-400.0,0.00019996,2]
[360675500,1746922275414,-400.0,0.00019996,2]
[360675501,1746922275426,-400.0,0.00019996,2]
[360675502,1746922275436,-400.0,0.00019996,2]
[360675503,1746922275446,-861.14,0.00019996,2]
[360675504,1746922275456,-400.0,0.00019996,2]
[360675505,1746922275467,-400.0,0.00019996,2]
[360675506,1746922275476,-400.0,0.00019996,2]
[360675507,1746922275487,-1549.33,0.00019996,2]
[360675508,1746922275497,-400.0,0.00019996,2]
[360675509,1746922275507,-400.0,0.00019996,2]
[360675510,1746922275516,-851.88,0.00019996,2]
[360675511,1746922275526,-292.86335353,0.00019996,2]
[360675512,1746922275535,-400.0,0.00019996,2]
[360675513,1746922275546,-908.5,0.00019996,2]
[360675514,1746922275555,-500.0,0.00019996,2]
[360675515,1746922275565,-300.0,0.00019996,2]
[360675516,1746922275575,-300.0,0.00019997,2]
[360675517,1746922275585,-500.0,0.00019997,2]
[360675518,1746922275595,-500.0,0.00019997,2]
[360675519,1746922275604,-400.0,0.00019997,2]
[360675520,1746922275619,-400.0,0.00019997,2]
[360675521,1746922275628,-416.54,0.00019997,2]
[360675522,1746922275639,-511.72,0.00019997,2]
[360675523,1746922275648,-400.0,0.00019997,2]
[360675524,1746922275658,-468.61,0.00019997,2]
[360675525,1746922275668,-1034.88,0.00019997,2]
[360675526,1746922275677,-491.04,0.00019997,2]
[360675527,1746922275687,-891.09,0.00019997,2]
[360675528,1746922275696,-400.0,0.00019997,2]
[360675529,1746922275706,-400.0,0.00019997,2]
[360675530,1746922275715,-400.0,0.00019997,2]
[360675531,1746922275725,-400.0,0.00019997,2]
[360675532,1746922275734,-400.0,0.00019997,2]
[360675533,1746922275743,-290.82,0.00019997,2]
[360675534,1746922275754,-400.0,0.00019997,2]
[360675535,1746922275764,-400.0,0.00019997,2]
[360675536,1746922275774,-400.0,0.00019997,2]
[360675537,1746922275784,-400.0,0.00019997,2]
[360675538,1746922275793,-400.0,0.00019997,2]
[360675539,1746922275803,-450.0,0.00019997,2]
[360675540,1746922275813,-400.0,0.00019997,2]
[360675541,1746922275823,-702.22,0.00019997,2]
[360675542,1746922275832,-321.47,0.00019997,2]
[360675543,1746922275842,-836.26,0.00019997,2]
[360675544,1746922275852,-676.49175626,0.00019997,2]
[360675545,1746922275865,-638.44,0.00019997,2]
[360675546,1746922275875,-327.49,0.00019997,2]
[360675547,1746922275884,-400.0,0.00019997,2]
[360675548,1746922275894,-518.45,0.00019997,2]
[360675549,1746922275903,-400.0,0.00019997,2]
[360675550,1746922275912,-614.22,0.00019997,2]
[360675551,1746922275922,-400.0,0.00019997,2]
[360675552,1746922275931,-400.0,0.00019997,2]
[360675553,1746922275941,-506.95,0.00019997,2]
[360675554,1746922275950,-400.0,0.00019997,2]
[360675555,1746922275959,-431.85,0.00019997,2]
[360675556,1746922275970,-151.0,0.00019997,2]
[360675557,1746922275979,-724.13,0.00019997,2]
[360675558,1746922275989,-400.0,0.00019997,2]
[360675559,1746922275998,-400.0,0.00019997,2]
[360675560,1746922276008,-400.0,0.00019997,2]
[360675561,1746922276017,-423.04,0.00019997,2]
[360675562,1746922276027,-400.0,0.00019997,2]
[360675563,1746922276036,-260.04,0.00019997,2]
[360675564,1746922276045,-424.85,0.00019997,2]
[360675565,1746922276056,-400.0,0.00019997,2]
[360675566,1746922276066,-680.11,0.00019997,2]
[360675567,1746922276075,-400.0,0.00019997,2]
[360675568,1746922276085,-400.0,0.00019997,2]
[360675569,1746922276094,-400.0,0.00019997,2]
[360675570,1746922276104,-400.0,0.00019997,2]
[360675571,1746922276116,-400.0,0.00019997,2]
[360675572,1746922276126,-219.00626502,0.00019997,2]
[360675573,1746922276135,-400.0,0.00019997,2]
[360675574,1746922276144,-722.52,0.00019997,2]
[360675575,1746922276153,-400.0,0.00019997,2]
[360675576,1746922276163,-428.6,0.00019997,2]
[360675577,1746922276172,-400.0,0.00019997,2]
[360675578,1746922276181,-400.0,0.00019997,2]
[360675579,1746922276191,-400.0,0.00019997,2]
[360675580,1746922276200,-400.0,0.00019997,2]
[360675581,1746922276209,-400.0,0.00019997,2]
[360675582,1746922276219,-494.9,0.00019997,2]
[360675583,1746922276229,-400.0,0.00019997,2]
[360675584,1746922276240,-400.0,0.00019997,2]
[360675585,1746922276250,-1196.84,0.00019997,2]
[360675586,1746922276260,-400.0,0.00019997,2]
[360675587,1746922276269,-400.0,0.00019997,2]
[360675588,1746922276279,-588.98,0.00019997,2]
[360675589,1746922276291,-400.0,0.00019997,2]
[360675590,1746922276301,-400.0,0.00019997,2]
[360675591,1746922276310,-400.0,0.00019997,2]
[360675592,1746922276320,-711.13,0.00019997,2]
[360675593,1746922276330,-400.0,0.00019997,2]
[360675594,1746922276361,-400.0,0.00019997,2]
[360675595,1746922276370,-413.9,0.00019997,2]
[360675596,1746922276380,-400.0,0.00019997,2]
[360675597,1746922276390,-400.0,0.00019997,2]
[360675598,1746922276400,-400.0,0.00019997,2]
[360675599,1746922276411,-400.0,0.00019997,2]
[360675600,1746922276421,-501.66,0.00019997,2]
[360675601,1746922276432,-400.0,0.00019997,2]
[360675602,1746922276442,-748.55,0.00019997,2]
[360675603,1746922276452,-400.0,0.00019997,2]
[360675604,1746922276462,-27410.73,0.00019997,2]
[360675605,1746922276473,-293.30630009,0.00019997,2]
[360675606,1746922276483,-400.0,0.00019997,2]
[360675607,1746922276493,-660.51,0.00019997,2]
[360675608,1746922276503,-400.0,0.00019997,2]
[360675609,1746922276513,-568.0,0.00019997,2]
[360675610,1746922276524,-500.0,0.00019997,2]
[360675611,1746922276534,-400.0,0.00019997,2]
[360675612,1746922276544,-400.0,0.00019997,2]
[360675613,1746922276554,-400.0,0.00019997,2]
[360675614,1746922276564,-820.74,0.00019997,2]
[360675615,1746922276573,-815.94,0.00019997,2]
[360675616,1746922276583,-686.29,0.00019997,2]
[360675617,1746922276594,-1754.64,0.00019997,2]
[360675618,1746922276603,-400.0,0.00019997,2]
[360675619,1746922276616,-400.0,0.00019997,2]
[360675620,1746922276625,-400.0,0.00019997,2]
[360675621,1746922276636,-570.9,0.00019997,2]
[360675622,1746922276646,-400.0,0.00019997,2]
[360675623,1746922276656,-863.57,0.00019997,2]
[360675624,1746922276666,-624.8,0.00019997,2]
[360675625,1746922276676,-610.92,0.00019997,2]
[360675626,1746922276686,-2975.71,0.00019997,2]
[360675627,1746922276696,-400.0,0.00019997,2]
[360675628,1746922276707,-657.91,0.00019997,2]
[360675629,1746922276716,-400.0,0.00019997,2]
[360675630,1746922276727,-3132.65,0.00019997,2]
[360675631,1746922276736,-1696.63,0.00019997,2]
[360675632,1746922276746,-400.0,0.00019997,2]
[360675633,1746922276755,-400.0,0.00019997,2]
[360675634,1746922276765,-795.5,0.00019997,2]
[360675635,1746922276775,-400.0,0.00019997,2]
[360675636,1746922276784,-400.0,0.00019997,2]
[360675637,1746922276794,-470.43,0.00019997,2]
[360675638,1746922276803,-1342.02,0.00019997,2]
[360675639,1746922276813,-402.12,0.00019997,2]
[360675640,1746922276822,-400.0,0.00019997,2]
[360675641,1746922276831,-400.0,0.00019997,2]
[360675642,1746922276840,-400.0,0.00019997,2]
[360675643,1746922276850,-400.0,0.00019997,2]
[360675644,1746922276861,-400.0,0.00019997,2]
[360675645,1746922276871,-400.0,0.00019997,2]
[360675646,1746922276880,-400.0,0.00019997,2]
[360675647,1746922276890,-400.0,0.00019997,2]
[360675648,1746922276900,-314.18343024,0.00019997,2]
[360675649,1746922276909,-400.0,0.00019997,2]
[360675650,1746922276919,-600.9,0.00019997,2]
[360675651,1746922276928,-400.0,0.00019997,2]
[360675652,1746922276938,-400.0,0.00019997,2]
[360675653,1746922276947,-342.01700466,0.00019997,2]
[360675654,1746922276957,-544.12,0.00019997,2]
[360675655,1746922276966,-400.0,0.00019997,2]
[360675656,1746922276976,-400.0,0.00019997,2]
[360675657,1746922276986,-400.0,0.00019997,2]
[360675658,1746922276995,-400.0,0.00019997,2]
[360675659,1746922277005,-2265.29,0.00019997,2]
[360675660,1746922277016,-400.0,0.00019997,2]
[360675661,1746922277027,-518.2,0.00019997,2]
[360675662,1746922277037,-400.0,0.00019997,2]
[360675663,1746922277048,-400.0,0.00019997,2]
[360675664,1746922277058,-400.0,0.00019997,2]
[360675665,1746922277067,-400.0,0.00019997,2]
[360675666,1746922277076,-715.83432232,0.00019998,2]
[360675667,1746922277086,-141157.93473852,0.00019998,2]
[360675669,1746922277572,-975.83331187,0.00019998,2]
[360675670,1746922277585,-1235.699995,0.00019998,2]
[360675674,1746922278827,-304.81,0.00019254,2]
[360675675,1746922278837,-400.0,0.00019532,2]
[360675676,1746922278846,-400.0,0.00019532,2]
[360675677,1746922278855,-400.0,0.00019532,2]
[360675678,1746922278867,-400.0,0.00019532,2]
[360675679,1746922278876,-543.01,0.00019533,2]
[360675680,1746922278886,-400.0,0.00019533,2]
[360675681,1746922278896,-400.0,0.00019634,2]
[360675682,1746922278906,-503.68,0.00019634,2]
[360675683,1746922278916,-400.0,0.00019635,2]
[360675684,1746922278926,-400.0,0.00019635,2]
[360675685,1746922278935,-400.0,0.00019635,2]
[360675686,1746922278944,-400.0,0.00019635,2]
[360675687,1746922278953,-400.0,0.00019635,2]
[360675688,1746922278962,-400.0,0.00019635,2]
[360675689,1746922278972,-400.0,0.00019635,2]
[360675690,1746922278981,-400.0,0.00019635,2]
[360675691,1746922278990,-400.0,0.00019635,2]
[360675692,1746922279000,-400.0,0.00019674,2]
[360675693,1746922279010,-400.0,0.00019735,2]
[360675694,1746922279020,-543.01,0.00019736,2]
[360675695,1746922279029,-400.0,0.00019736,2]
[360675696,1746922279039,-400.0,0.00019743,2]
[360675697,1746922279049,-400.0,0.00019743,2]
[360675698,1746922279058,-400.0,0.00019743,2]
[360675699,1746922279067,-400.0,0.00019743,2]
[360675700,1746922279076,-422.76702596,0.00019743,2]
[360675701,1746922279086,-400.0,0.00019743,2]
[360675702,1746922279095,-400.0,0.00019743,2]
[360675703,1746922279105,-400.0,0.00019858,2]
[360675704,1746922279117,-543.01,0.00019886,2]
[360675705,1746922279126,-400.0,0.00019886,2]
[360675707,1746922279136,-2437.8055417,0.00019898,2]
[360675708,1746922279146,-400.0,0.00019899,2]
[360675709,1746922279155,-400.0,0.00019899,2]
[360675710,1746922279165,-370.88,0.00019899,2]
[360675711,1746922279174,-400.0,0.00019899,2]
[360675712,1746922279184,-5789.32112788,0.000199,2]
[360675713,1746922279194,-400.0,0.00019973,2]
[360675714,1746922279203,-543.01,0.00019973,2]
[360675715,1746922279212,-400.0,0.00019973,2]
[360675716,1746922279222,-339.61372597,0.00019973,2]
[360675717,1746922279232,-400.0,0.00019973,2]
[360675718,1746922279241,-543.01,0.00019981,2]
[360675719,1746922279251,-178.22970499,0.00019984,2]
[360675720,1746922279261,-400.0,0.00019984,2]
[360675721,1746922279270,-400.0,0.00019984,2]
[360675722,1746922279280,-400.0,0.00019984,2]
[360675723,1746922279289,-543.01,0.00019984,2]
[360675724,1746922279299,-400.0,0.00019984,2]
[360675725,1746922279308,-400.0,0.00019984,2]
[360675726,1746922279317,-400.0,0.00019984,2]
[360675727,1746922279327,-769.19,0.00019985,2]
[360675728,1746922279340,-769.19,0.00019985,2]
[360675729,1746922279350,-400.0,0.00019985,2]
[360675730,1746922279360,-543.01,0.00019985,2]
[360675731,1746922279370,-543.01,0.00019985,2]
[360675732,1746922279380,-400.0,0.00019985,2]
[360675733,1746922279390,-769.19,0.00019988,2]
[360675734,1746922279400,-543.01,0.00019996,2]
[360675735,1746922279409,-769.19,0.00019997,2]
[360675736,1746922279420,-4572.9390068,0.00019998,2]
[360675737,1746922279432,-719871.41660652,0.00019998,2]
[360675738,1746922279443,-8914.38803933,0.00019998,2]
[360675739,1746922279470,-400.0,0.00019532,2]
[360675740,1746922279479,-400.0,0.00019532,2]
[360675741,1746922279489,-400.0,0.00019743,2]
[360675742,1746922279499,-14984.53155832,0.00019998,2]
[360675743,1746922279510,-3563.78826016,0.00019998,2]
[360675744,1746922279531,-400.0,0.00019899,2]
[360675745,1746922279541,-343.35,0.00019988,2]
[360675747,1746922279557,-400.0,0.00019899,2]
[360675748,1746922279567,-10.09835017,0.00019988,2]
[360675749,1746922279576,-95777.50550651,0.00019998,2]
[360675750,1746922279587,-4261.80301617,0.00019998,2]
[360675751,1746922279599,-3753.2319053,0.00019998,2]
[360675752,1746922279656,-400.0,0.00019634,2]
[360675753,1746922279665,-400.0,0.00019634,2]
[360675754,1746922279675,-468.3185379,0.00019735,2]
[360675755,1746922279684,-400.0,0.00019899,2]
[360675756,1746922279826,-400.0,0.00019973,2]
[360675757,1746922279839,-400.0,0.00019973,2]
[360675758,1746922279849,-4356.1134051,0.00019998,2]
[360675759,1746922279879,-400.0,0.00019735,2]
[360675760,1746922279889,-49661.5457479,0.00019998,2]
[360675761,1746922279901,-576.74469646,0.00019998,2]
[360675762,1746922279922,-400.0,0.00019984,2]
[360675763,1746922279931,-4069.64549135,0.00019998,2]
[360675764,1746922279943,-23902.45980827,0.00019998,2]
[360675794,1746922348173,1999.0,0.00030137,120]
[360675795,1746922384847,262.68,0.00030136,120]
[360675797,1746922451240,694.75,0.00016586,2]
[360675800,1746922517561,150.0,0.000185,5]
[360675801,1746922587540,1722.47103822,0.000185,5]
[360675805,1746922747415,1135.0,0.00030137,120]
[360675820,1746922921283,150.0,0.00030137,120]
[360675837,1746923064810,345.39,0.00013699,2]
[360675840,1746923070044,250.0,0.00017,2]
[360675858,1746923236086,-194.94208931,0.0001855,2]
[360675859,1746923236108,-250.0,0.00018589,2]
[360675860,1746923236129,-734.38515671,0.00018618,2]
[360675862,1746923248088,-1358.51484329,0.00018618,2]
[360675864,1746923248110,-250.0,0.0001865,2]
[360675865,1746923248131,-297.70784973,0.00018724,2]
[360675868,1746923265150,168.64089357,0.0003,120]
[360675873,1746923301789,155.58,0.0002748,120]
[360675918,1746923432164,-344.62,0.00018317,2]
[360675921,1746923432175,-155.58,0.0001832,2]
[360675924,1746923432187,-423.6,0.00018323,2]
[360675928,1746923432198,-26.8,0.00018724,2]
[360675930,1746923432212,-459.96220374,0.00018724,2]
[360675932,1746923432224,-250.0,0.00018774,2]
[360675934,1746923432236,-1268.72597958,0.00018832,2]
[360675936,1746923432247,-694.75,0.0001885,2]
[360675939,1746923432258,-300.0,0.000189,6]
[360675941,1746923432270,-200.0,0.00018919,2]
[360675942,1746923432284,-1200.0,0.00018937,2]
[360675943,1746923432295,-207.4,0.00018939,2]
[360675944,1746923432307,-300.0,0.00018999,2]
[360675945,1746923432319,-300.0,0.00019,2]
[360675946,1746923432330,-600.0,0.00019,6]
[360675947,1746923432343,-162.35535246,0.00019014,2]
[360675948,1746923432355,-784.47005347,0.0001904,2]
[360675949,1746923432366,-163.25,0.00019077,2]
[360675950,1746923432377,-162.35535246,0.00019096,2]
[360675951,1746923432389,-900.0,0.000191,6]
[360675952,1746923432401,-300.0,0.00019139,2]
[360675953,1746923432412,-300.0,0.00019139,2]
[360675954,1746923432424,-1998.21716168,0.0001914,2]
[360675955,1746923432435,-151.0,0.00019167,2]
[360675956,1746923432447,-151.0,0.00019167,2]
[360675957,1746923432458,-668.65185757,0.00019167,2]
[360675958,1746923432469,-151.0,0.00019167,2]
[360675959,1746923432480,-151.0,0.00019178,2]
[360675960,1746923432491,-162.35535246,0.00019178,2]
[360675961,1746923432502,-256.59,0.00019178,2]
[360675962,1746923432514,-173.4,0.00019178,2]
[360675963,1746923432532,-150.06,0.00019178,2]
[360675964,1746923432544,-150.06,0.00019178,2]
[360675965,1746923432555,-162.5,0.00019178,2]
[360675966,1746923432566,-352.66,0.00019178,2]
[360675967,1746923432577,-452.36,0.00019178,2]